fUST/lending_fUST_20250924
["ID","MTS","AMOUNT","RATE_DAILY","PERIOD"]
[387210381,1758649834580,-480.0,0.00019178,2]
[387210382,1758649834590,-480.0,0.00019178,2]
[387210383,1758649834601,-480.0,0.00019178,2]
[387210384,1758649834613,-480.0,0.00019178,2]
[387210385,1758649834624,-480.0,0.00019178,2]
[387210386,1758649834638,-372.9233371,0.00019178,2]
[387210387,1758649834650,-480.0,0.00019178,2]
[387210388,1758649834661,-480.0,0.00019178,2]
[387210389,1758649834673,-480.0,0.00019178,2]
[387210390,1758649834687,-480.0,0.00019178,2]
[387210391,1758649834697,-480.0,0.00019178,2]
[387210392,1758649834709,-480.0,0.00019178,2]
[387210393,1758649834721,-480.0,0.00019178,2]
[387210394,1758649834732,-480.0,0.00019178,2]
[387210395,1758649834744,-480.0,0.00019178,2]
[387210396,1758649834755,-480.0,0.00019178,2]
[387210397,1758649834767,-480.0,0.00019178,2]
[387210398,1758649834779,-480.0,0.00019178,2]
[387210399,1758649834791,-480.0,0.00019178,2]
[387210400,1758649834803,-490.04130418,0.00019178,2]
[387210401,1758649834815,-151.0,0.00019178,2]
[387210402,1758649834825,-151.0,0.00019178,2]
[387210403,1758649834837,-151.0,0.00019178,2]
[387210404,1758649834847,-151.0,0.00019178,2]
[387210405,1758649834859,-151.0,0.00019178,2]
[387210406,1758649834870,-151.0,0.00019178,2]
[387210407,1758649834881,-480.0,0.00019178,2]
[387210408,1758649834893,-151.0,0.00019178,2]
[387210409,1758649834904,-186.660532,0.00019178,2]
[387210410,1758649834918,-480.0,0.00019178,2]
[387210411,1758649834936,-480.0,0.00019178,2]
[387210412,1758649834946,-486.08484224,0.00019178,2]
[387210413,1758649834957,-480.0,0.00019178,2]
[387210414,1758649834968,-480.0,0.00019178,2]
[387210415,1758649834979,-480.0,0.00019178,2]
[387210416,1758649834990,-483.18176845,0.00019178,2]
[387210417,1758649835001,-471.55679866,0.00019178,2]
[387210418,1758649835013,-480.0,0.00019178,2]
[387210419,1758649835025,-491.87442836,0.00019178,2]
[387210420,1758649835036,-480.0,0.00019178,2]
[387210421,1758649835047,-257.40480864,0.00019178,2]
[387210422,1758649835326,-222.59519136,0.00019178,2]
[387210423,1758649835335,-480.0,0.00019178,2]
[387210424,1758649835345,-27.70277733,0.00019178,2]
[387210425,1758649835356,-452.29722267,0.00019178,2]
[387210426,1758649835366,-480.0,0.00019178,2]
[387210427,1758649835375,-480.0,0.00019178,2]
[387210428,1758649835385,-397.19610179,0.00019178,2]
[387210461,1758649838611,-1659.48524447,0.00019168,2]
[387210483,1758649840598,-3115.74309295,0.00019168,2]
[387210485,1758649840608,-82.80389821,0.00019178,2]
[387210487,1758649840617,-480.0,0.00019178,2]
[387210489,1758649840626,-480.0,0.00019178,2]
[387210491,1758649840636,-480.0,0.00019178,2]
[387210493,1758649840645,-379.99589301,0.00019178,2]
[387210495,1758649840654,-480.0,0.00019178,2]
[387210497,1758649840663,-480.0,0.00019178,2]
[387210499,1758649840672,-480.0,0.00019178,2]
[387210501,1758649840681,-480.0,0.00019178,2]
[387210503,1758649840690,-480.0,0.00019178,2]
[387210505,1758649840699,-480.0,0.00019178,2]
[387210507,1758649840709,-480.0,0.00019178,2]
[387210509,1758649840717,-480.0,0.00019178,2]
[387210511,1758649840726,-134.05711589,0.00019178,2]
[387210513,1758649840738,-293.78569639,0.00019178,2]
[387210805,1758649843725,-52.15718772,0.00019178,2]
[387210806,1758649843735,-500.0,0.00019178,2]
[387210807,1758649843745,-500.0,0.00019178,2]
[387210808,1758649843754,-191.84281228,0.00019178,2]
[387210829,1758649846678,-288.15718772,0.00019178,2]
[387210830,1758649846689,-480.0,0.00019178,2]
[387210831,1758649846699,-480.0,0.00019178,2]
[387210832,1758649846709,-480.0,0.00019178,2]
[387210833,1758649846718,-480.0,0.00019178,2]
[387210834,1758649846730,-480.0,0.00019178,2]
[387210836,1758649846740,-480.0,0.00019178,2]
[387210837,1758649846749,-480.0,0.00019178,2]
[387210838,1758649846758,-500.0,0.00019178,2]
[387210839,1758649846768,-500.0,0.00019178,2]
[387210840,1758649846778,-500.0,0.00019178,2]
[387210841,1758649846788,-500.0,0.00019178,2]
[387210842,1758649846798,-500.0,0.00019178,2]
[387210843,1758649846807,-500.0,0.00019178,2]
[387210844,1758649846818,-522.68,0.00019178,2]
[387210845,1758649846828,-485.43459442,0.00019178,2]
[387210846,1758649846837,-396.69948626,0.00019178,2]
[387210848,1758649846847,-482.81175767,0.00019178,2]
[387210850,1758649846856,-9201.64,0.00019178,2]
[387210852,1758649846865,-480.0,0.00019178,2]
[387210854,1758649846874,-480.0,0.00019178,2]
[387210856,1758649846883,-480.0,0.00019178,2]
[387210857,1758649846893,-480.0,0.00019178,2]
[387210858,1758649846902,-480.0,0.00019178,2]
[387210859,1758649846912,-480.0,0.00019178,2]
[387210861,1758649846921,-483.50642814,0.00019178,2]
[387210863,1758649846930,-483.05180579,0.00019178,2]
[387210865,1758649846939,-260.98813677,0.00019178,2]
[387210867,1758649846948,-480.0,0.00019178,2]
[387210869,1758649846957,-480.0,0.00019178,2]
[387210871,1758649846966,-480.0,0.00019178,2]
[387210873,1758649846975,-480.0,0.00019178,2]
[387210875,1758649846985,-480.0,0.00019178,2]
[387210877,1758649846994,-480.0,0.00019178,2]
[387210879,1758649847003,-480.0,0.00019178,2]
[387210881,1758649847012,-480.0,0.00019178,2]
[387210883,1758649847022,-480.0,0.00019178,2]
[387210885,1758649847032,-480.0,0.00019178,2]
[387210886,1758649847041,-480.0,0.00019178,2]
[387210889,1758649847051,-480.0,0.00019178,2]
[387210891,1758649847061,-480.0,0.00019178,2]
[387210893,1758649847070,-480.0,0.00019178,2]
[387210895,1758649847084,-514.34,0.00019178,2]
[387210897,1758649847093,-480.0,0.00019178,2]
[387210899,1758649847103,-480.0,0.00019178,2]
[387210901,1758649847112,-501.09675409,0.00019178,2]
[387210903,1758649847122,-480.0,0.00019178,2]
[387210905,1758649847136,-480.0,0.00019178,2]
[387210907,1758649847145,-480.0,0.00019178,2]
[387210909,1758649847155,-480.0,0.00019178,2]
[387210911,1758649847165,-480.0,0.00019178,2]
[387210913,1758649847174,-487.80972206,0.00019178,2]
[387210915,1758649847183,-480.0,0.00019178,2]
[387210917,1758649847193,-480.0,0.00019178,2]
[387210919,1758649847202,-974.67,0.00019178,2]
[387210921,1758649847211,-480.0,0.00019178,2]
[387210923,1758649847220,-480.0,0.00019178,2]
[387210925,1758649847230,-1111.81,0.00019178,2]
[387210927,1758649847239,-480.0,0.00019178,2]
[387210929,1758649847249,-480.0,0.00019178,2]
[387210931,1758649847258,-480.0,0.00019178,2]
[387210933,1758649847267,-483.9748714,0.00019178,2]
[387210934,1758649847277,-480.0,0.00019178,2]
[387210936,1758649847287,-480.0,0.00019178,2]
[387210938,1758649847296,-480.0,0.00019178,2]
[387210940,1758649847305,-480.0,0.00019178,2]
[387210942,1758649847315,-511.48209404,0.00019178,2]
[387210944,1758649847324,-6644.03,0.00019178,2]
[387210946,1758649847335,-480.0,0.00019178,2]
[387210948,1758649847344,-480.0,0.00019178,2]
[387210950,1758649847353,-480.0,0.00019178,2]
[387210952,1758649847363,-480.0,0.00019178,2]
[387210954,1758649847372,-652.23,0.00019178,2]
[387210956,1758649847381,-480.0,0.00019178,2]
[387210958,1758649847390,-480.0,0.00019178,2]
[387210960,1758649847399,-480.0,0.00019178,2]
[387210962,1758649847410,-602.29,0.00019178,2]
[387210964,1758649847419,-480.0,0.00019178,2]
[387210966,1758649847428,-480.0,0.00019178,2]
[387210968,1758649847437,-480.0,0.00019178,2]
[387210970,1758649847446,-480.0,0.00019178,2]
[387210972,1758649847455,-480.0,0.00019178,2]
[387210974,1758649847464,-480.0,0.00019178,2]
[387210976,1758649847474,-480.0,0.00019178,2]
[387210978,1758649847483,-2687.26,0.00019178,2]
[387210980,1758649847492,-489.30140245,0.00019178,2]
[387210982,1758649847501,-480.0,0.00019178,2]
[387210984,1758649847510,-480.0,0.00019178,2]
[387210985,1758649847519,-480.0,0.00019178,2]
[387210987,1758649847528,-480.0,0.00019178,2]
[387210989,1758649847539,-480.0,0.00019178,2]
[387210991,1758649847549,-480.0,0.00019178,2]
[387210993,1758649847559,-482.85373751,0.00019178,2]
[387210995,1758649847568,-480.0,0.00019178,2]
[387210998,1758649847578,-1054.97,0.00019178,2]
[387210999,1758649847590,-480.0,0.00019178,2]
[387211001,1758649847599,-760.89,0.00019178,2]
[387211003,1758649847610,-480.0,0.00019178,2]
[387211005,1758649847620,-480.0,0.00019178,2]
[387211008,1758649847630,-480.0,0.00019178,2]
[387211010,1758649847639,-3935.25,0.00019178,2]
[387211012,1758649847649,-480.0,0.00019178,2]
[387211014,1758649847659,-1128.46,0.00019178,2]
[387211016,1758649847669,-480.0,0.00019178,2]
[387211018,1758649847678,-1128.46,0.00019178,2]
[387211019,1758649847687,-1128.46,0.00019178,2]
[387211021,1758649847696,-1128.46,0.00019178,2]
[387211023,1758649847705,-1128.46,0.00019178,2]
[387211025,1758649847714,-480.0,0.00019178,2]
[387211027,1758649847723,-1128.46,0.00019178,2]
[387211029,1758649847733,-1128.46,0.00019178,2]
[387211031,1758649847741,-1128.46,0.00019178,2]
[387211033,1758649847751,-1128.46,0.00019178,2]
[387211046,1758649847867,-1128.46,0.00019178,2]
[387211048,1758649847876,-480.0,0.00019178,2]
[387211050,1758649847886,-936.6,0.00019178,2]
[387211052,1758649847895,-480.0,0.00019178,2]
[387211054,1758649847904,-480.0,0.00019178,2]
[387211056,1758649847914,-480.0,0.00019178,2]
[387211058,1758649847924,-480.0,0.00019178,2]
[387211060,1758649847933,-480.0,0.00019178,2]
[387211062,1758649847942,-480.0,0.00019178,2]
[387211064,1758649847951,-480.0,0.00019178,2]
[387211066,1758649847960,-480.0,0.00019178,2]
[387211067,1758649847969,-305.76750108,0.00019178,2]
[387211069,1758649847978,-480.0,0.00019178,2]
[387211071,1758649847988,-480.70851164,0.00019178,2]
[387211073,1758649847997,-480.0,0.00019178,2]
[387211075,1758649848007,-480.0,0.00019178,2]
[387211077,1758649848016,-480.0,0.00019178,2]
[387211079,1758649848025,-480.0,0.00019178,2]
[387211081,1758649848036,-480.0,0.00019178,2]
[387211083,1758649848045,-723.43,0.00019178,2]
[387211085,1758649848055,-480.0,0.00019178,2]
[387211087,1758649848065,-566.51,0.00019178,2]
[387211089,1758649848075,-480.0,0.00019178,2]
[387211091,1758649848089,-480.0,0.00019178,2]
[387211092,1758649848099,-480.0,0.00019178,2]
[387211094,1758649848109,-480.0,0.00019178,2]
[387211095,1758649848118,-480.0,0.00019178,2]
[387211096,1758649848129,-345.38657958,0.00019178,2]
[387211097,1758649848138,-480.0,0.00019178,2]
[387211098,1758649848149,-480.0,0.00019178,2]
[387211099,1758649848161,-480.0,0.00019178,2]
[387211100,1758649848171,-782.4,0.00019178,2]
[387211101,1758649848181,-621.1,0.00019178,2]
[387211102,1758649848191,-480.0,0.00019178,2]
[387211103,1758649848200,-480.0,0.00019178,2]
[387211104,1758649848210,-480.0,0.00019178,2]
[387211105,1758649848220,-486.51827478,0.00019178,2]
[387211106,1758649848229,-480.0,0.00019178,2]
[387211107,1758649848239,-480.0,0.00019178,2]
[387211108,1758649848248,-480.0,0.00019178,2]
[387211109,1758649848258,-480.0,0.00019178,2]
[387211110,1758649848268,-480.0,0.00019178,2]
[387211111,1758649848277,-480.0,0.00019178,2]
[387211112,1758649848287,-2100.21,0.00019178,2]
[387211113,1758649848296,-480.0,0.00019178,2]
[387211114,1758649848307,-480.0,0.00019178,2]
[387211115,1758649848316,-520.0,0.00019178,2]
[387211116,1758649848325,-480.0,0.00019178,2]
[387211117,1758649848336,-1977.86,0.00019178,2]
[387211118,1758649848345,-480.0,0.00019178,2]
[387211119,1758649848354,-480.0,0.00019178,2]
[387211120,1758649848364,-287.4023422,0.00019178,2]
[387211121,1758649848379,-192.5976578,0.00019178,2]
[387211122,1758649848388,-480.0,0.00019178,2]
[387211123,1758649848397,-495.77,0.00019178,2]
[387211124,1758649848407,-480.0,0.00019178,2]
[387211125,1758649848416,-480.0,0.00019178,2]
[387211126,1758649848425,-480.0,0.00019178,2]
[387211127,1758649848435,-480.0,0.00019178,2]
[387211128,1758649848445,-691.03,0.00019178,2]
[387211129,1758649848457,-480.0,0.00019178,2]
[387211130,1758649848467,-480.0,0.00019178,2]
[387211131,1758649848476,-264.04548125,0.00019178,2]
[387211132,1758649848486,-744.96,0.00019178,2]
[387211133,1758649848495,-480.0,0.00019178,2]
[387211134,1758649848504,-480.0,0.00019178,2]
[387211135,1758649848514,-480.0,0.00019178,2]
[387211136,1758649848523,-480.0,0.00019178,2]
[387211137,1758649848534,-1693.86,0.00019178,2]
[387211138,1758649848544,-1426.43,0.00019178,2]
[387211139,1758649848554,-480.0,0.00019178,2]
[387211140,1758649848564,-480.0,0.00019178,2]
[387211141,1758649848573,-480.0,0.00019178,2]
[387211142,1758649848583,-480.0,0.00019178,2]
[387211143,1758649848593,-480.0,0.00019178,2]
[387211144,1758649848602,-480.0,0.00019178,2]
[387211145,1758649848612,-480.0,0.00019178,2]
[387211146,1758649848622,-151.0,0.00019178,2]
[387211147,1758649848632,-258.47653269,0.00019178,2]
[387211148,1758649848642,-480.0,0.00019178,2]
[387211149,1758649848652,-480.0,0.00019178,2]
[387211150,1758649848662,-414.01794614,0.00019178,2]
[387211151,1758649848672,-480.0,0.00019178,2]
[387211152,1758649848682,-960.29,0.00019178,2]
[387211153,1758649848692,-500.25082888,0.00019178,2]
[387211154,1758649848703,-480.0,0.00019178,2]
[387211155,1758649848712,-500.0,0.00019178,2]
[387211156,1758649848722,-556.26752842,0.00019279,2]
[387211157,1758649848731,-686.03,0.00019342,3]
[387211158,1758649848741,-151.0,0.00019352,2]
[387211159,1758649848751,-151.0,0.00019352,2]
[387211160,1758649848760,-151.0,0.00019352,2]
[387211161,1758649848772,-4876.62649972,0.00019352,2]
[387211162,1758649848781,-28553.27884719,0.00019352,2]
[387211163,1758649848791,-1128.46,0.0001945,2]
[387211164,1758649848801,-1128.46,0.00019451,2]
[387211165,1758649848810,-1128.46,0.00019451,2]
[387211166,1758649848820,-1128.46,0.00019451,2]
[387211167,1758649848829,-1128.46,0.00019451,2]
[387211168,1758649848839,-250.36913389,0.00019452,2]
[387211169,1758649848848,-480.0,0.00019452,2]
[387211170,1758649848858,-480.0,0.00019452,2]
[387211171,1758649848868,-887.435857,0.00019452,2]
[387211172,1758649848878,-480.0,0.00019452,2]
[387211173,1758649848887,-480.52859937,0.00019452,2]
[387211174,1758649848897,-480.0,0.00019452,2]
[387211175,1758649848907,-480.0,0.00019452,2]
[387211176,1758649848917,-480.0,0.00019452,2]
[387211177,1758649848926,-582.47135348,0.00019452,2]
[387211178,1758649848936,-480.0,0.00019452,2]
[387211179,1758649848946,-480.0,0.00019452,2]
[387211180,1758649848955,-480.0,0.00019452,2]
[387211181,1758649848965,-480.0,0.00019452,2]
[387211182,1758649848975,-2441.5300756,0.00019452,2]
[387211183,1758649848984,-483.21190736,0.00019452,2]
[387211184,1758649848994,-487.54809777,0.00019452,2]
[387211185,1758649849004,-480.0,0.00019452,2]
[387211186,1758649849013,-480.0,0.00019452,2]
[387211187,1758649849023,-480.0,0.00019452,2]
[387211188,1758649849033,-483.07820697,0.00019452,2]
[387211189,1758649849042,-480.0,0.00019452,2]
[387211190,1758649849052,-151.0,0.00019452,2]
[387211191,1758649849062,-151.0,0.00019452,2]
[387211192,1758649849072,-151.0,0.00019452,2]
[387211193,1758649849083,-287.98946814,0.00019452,2]
[387211194,1758649849094,-480.0,0.00019452,2]
[387211195,1758649849104,-480.0,0.00019452,2]
[387211196,1758649849114,-500.0,0.00019452,2]
[387211197,1758649849123,-480.0,0.00019452,2]
[387211198,1758649849134,-480.0,0.00019452,2]
[387211199,1758649849144,-479.26451212,0.00019452,2]
[387211200,1758649849157,-480.0,0.00019452,2]
[387211201,1758649849168,-480.0,0.00019452,2]
[387211202,1758649849184,-480.0,0.00019452,2]
[387211203,1758649849194,-583.36118904,0.00019452,2]
[387211204,1758649849204,-480.0,0.00019452,2]
[387211205,1758649849213,-480.0,0.00019452,2]
[387211206,1758649849223,-480.0,0.00019452,2]
[387211207,1758649849233,-480.0,0.00019452,2]
[387211208,1758649849242,-480.0,0.00019452,2]
[387211209,1758649849251,-480.0,0.00019452,2]
[387211210,1758649849262,-480.0,0.00019452,2]
[387211211,1758649849271,-449.94791946,0.00019452,2]
[387211212,1758649849281,-480.0,0.00019452,2]
[387211213,1758649849292,-480.0,0.00019452,2]
[387211214,1758649849301,-480.0,0.00019452,2]
[387211215,1758649849310,-480.0,0.00019452,2]
[387211216,1758649849320,-480.0,0.00019452,2]
[387211217,1758649849330,-480.0,0.00019452,2]
[387211218,1758649849339,-151.0,0.00019452,2]
[387211219,1758649849349,-151.0,0.00019452,2]
[387211220,1758649849358,-151.0,0.00019452,2]
[387211221,1758649849368,-151.0,0.00019452,2]
[387211222,1758649849377,-151.0,0.00019452,2]
[387211223,1758649849387,-151.0,0.00019452,2]
[387211224,1758649849396,-495.27914464,0.00019452,2]
[387211225,1758649849406,-480.0,0.00019452,2]
[387211226,1758649849415,-486.10320963,0.00019452,2]
[387211227,1758649849424,-480.0,0.00019452,2]
[387211228,1758649849434,-480.0,0.00019452,2]
[387211229,1758649849443,-480.0,0.00019452,2]
[387211230,1758649849453,-480.0,0.00019452,2]
[387211231,1758649849463,-9201.64,0.00019452,2]
[387211232,1758649849472,-480.0,0.00019452,2]
[387211233,1758649849482,-480.0,0.00019452,2]
[387211234,1758649849491,-480.0,0.00019452,2]
[387211235,1758649849501,-151.0,0.00019452,2]
[387211236,1758649849510,-151.0,0.00019452,2]
[387211237,1758649849519,-480.0,0.00019452,2]
[387211238,1758649849528,-480.0,0.00019452,2]
[387211239,1758649849539,-480.0,0.00019452,2]
[387211240,1758649849548,-480.0,0.00019452,2]
[387211241,1758649849558,-480.0,0.00019452,2]
[387211242,1758649849567,-514.34,0.00019452,2]
[387211243,1758649849576,-218.52430915,0.00019452,2]
[387211244,1758649849586,-480.0,0.00019452,2]
[387211245,1758649849596,-974.67,0.00019452,2]
[387211246,1758649849606,-484.25849667,0.00019452,2]
[387211247,1758649849616,-1111.81,0.00019452,2]
[387211248,1758649849626,-580.33435664,0.00019452,2]
[387211249,1758649849637,-517.93165146,0.00019452,2]
[387211250,1758649849647,-480.0,0.00019452,2]
[387211251,1758649849657,-480.0,0.00019452,2]
[387211252,1758649849668,-213.28358988,0.00019452,2]
[387211253,1758649849679,-6644.03,0.00019452,2]
[387211254,1758649849689,-652.23,0.00019452,2]
[387211255,1758649849698,-480.0,0.00019452,2]
[387211256,1758649849707,-535.83233863,0.00019452,2]
[387211257,1758649849717,-602.29,0.00019452,2]
[387211258,1758649849727,-490.64576399,0.00019452,2]
[387211259,1758649849737,-480.0,0.00019452,2]
[387211260,1758649849746,-462.59048808,0.00019452,2]
[387211261,1758649849756,-480.0,0.00019452,2]
[387211262,1758649849766,-2687.26,0.00019452,2]
[387211263,1758649849777,-993.56,0.00019452,2]
[387211264,1758649849788,-480.0,0.00019452,2]
[387211265,1758649849798,-480.0,0.00019452,2]
[387211266,1758649849809,-480.0,0.00019452,2]
[387211267,1758649849818,-1054.97,0.00019452,2]
[387211268,1758649849828,-760.89,0.00019452,2]
[387211269,1758649849837,-480.0,0.00019452,2]
[387211270,1758649849847,-3935.25,0.00019452,2]
[387211271,1758649849857,-480.0,0.00019452,2]
[387211272,1758649849867,-151.0,0.00019452,2]
[387211273,1758649849876,-480.0,0.00019452,2]
[387211274,1758649849886,-151.0,0.00019452,2]
[387211275,1758649849896,-936.6,0.00019452,2]
[387211276,1758649849906,-480.0,0.00019452,2]
[387211277,1758649849915,-480.0,0.00019452,2]
[387211278,1758649849925,-480.0,0.00019452,2]
[387211279,1758649849935,-480.0,0.00019452,2]
[387211280,1758649849944,-480.0,0.00019452,2]
[387211281,1758649849954,-480.0,0.00019452,2]
[387211282,1758649849963,-480.0,0.00019452,2]
[387211283,1758649849972,-480.0,0.00019452,2]
[387211284,1758649849981,-480.0,0.00019452,2]
[387211285,1758649849991,-480.0,0.00019452,2]
[387211286,1758649850000,-723.43,0.00019452,2]
[387211287,1758649850009,-480.0,0.00019452,2]
[387211288,1758649850019,-566.51,0.00019452,2]
[387211289,1758649850028,-480.0,0.00019452,2]
[387211290,1758649850041,-480.0,0.00019452,2]
[387211291,1758649850051,-480.0,0.00019452,2]
[387211292,1758649850060,-480.0,0.00019452,2]
[387211293,1758649850070,-782.4,0.00019452,2]
[387211294,1758649850083,-621.1,0.00019452,2]
[387211295,1758649850093,-480.0,0.00019452,2]
[387211296,1758649850102,-480.0,0.00019452,2]
[387211297,1758649850111,-480.0,0.00019452,2]
[387211298,1758649850120,-480.0,0.00019452,2]
[387211299,1758649850130,-480.0,0.00019452,2]
[387211300,1758649850139,-2100.21,0.00019452,2]
[387211301,1758649850148,-480.0,0.00019452,2]
[387211302,1758649850159,-480.0,0.00019452,2]
[387211303,1758649850168,-480.0,0.00019452,2]
[387211304,1758649850263,-1977.86,0.00019452,2]
[387211305,1758649850273,-480.0,0.00019452,2]
[387211306,1758649850282,-480.0,0.00019452,2]
[387211307,1758649850292,-480.0,0.00019452,2]
[387211308,1758649850302,-480.0,0.00019452,2]
[387211309,1758649850311,-495.77,0.00019452,2]
[387211310,1758649850320,-480.0,0.00019452,2]
[387211311,1758649850329,-480.0,0.00019452,2]
[387211312,1758649850338,-691.03,0.00019452,2]
[387211313,1758649850347,-500.0,0.00019452,2]
[387211314,1758649850357,-744.96,0.00019452,2]
[387211315,1758649850366,-480.0,0.00019452,2]
[387211316,1758649850376,-480.0,0.00019452,2]
[387211317,1758649850385,-480.0,0.00019452,2]
[387211318,1758649850395,-1693.86,0.00019452,2]
[387211319,1758649850404,-1426.43,0.00019452,2]
[387211320,1758649850413,-237.33584899,0.00019452,2]
[387211321,1758649850423,-480.0,0.00019452,2]
[387211322,1758649850432,-480.0,0.00019452,2]
[387211323,1758649850441,-480.0,0.00019452,2]
[387211324,1758649850450,-480.0,0.00019452,2]
[387211325,1758649850459,-482.05203885,0.00019452,2]
[387211326,1758649850468,-480.0,0.00019452,2]
[387211327,1758649850477,-960.29,0.00019452,2]
[387211328,1758649850487,-480.0,0.00019452,2]
[387211329,1758649850496,-500.0,0.00019452,2]
[387211330,1758649850506,-500.0,0.00019473,2]
[387211331,1758649850515,-505.03476256,0.00019473,2]
[387211332,1758649850525,-500.0,0.00019473,2]
[387211333,1758649850537,-500.0,0.00019473,2]
[387211334,1758649850546,-500.0,0.00019473,2]
[387211335,1758649850555,-556.26752842,0.00019479,2]
[387211336,1758649850565,-1000.0,0.000195,2]
[387211337,1758649850574,-224.57227828,0.00019507,3]
[387211338,1758649850583,-1128.46,0.00019625,2]
[387211339,1758649850592,-439.01,0.00019626,2]
[387211340,1758649850602,-556.26752842,0.0001968,2]
[387211341,1758649850611,-1128.46,0.00019725,2]
[387211342,1758649850620,-1128.46,0.00019725,2]
[387211343,1758649850629,-1128.46,0.00019725,2]
[387211344,1758649850639,-1128.46,0.00019725,2]
[387211345,1758649850649,-1128.46,0.00019725,2]
[387211346,1758649850658,-1128.46,0.00019725,2]
[387211347,1758649850667,-1128.46,0.00019725,2]
[387211348,1758649850676,-1128.60497209,0.00019725,2]
[387211349,1758649850686,-151.0,0.00019726,2]
[387211350,1758649850695,-236.09968957,0.00019726,2]
[387211351,1758649850705,-151.0,0.00019726,2]
[387211352,1758649850715,-500.0,0.00019726,2]
[387211353,1758649850725,-480.0,0.00019726,2]
[387211354,1758649850735,-480.0,0.00019726,2]
[387211355,1758649850744,-480.0,0.00019726,2]
[387211356,1758649850754,-480.0,0.00019726,2]
[387211357,1758649850764,-480.0,0.00019726,2]
[387211358,1758649850773,-500.0,0.00019726,2]
[387211359,1758649850784,-151.0,0.00019726,2]
[387211360,1758649850794,-151.0,0.00019726,2]
[387211361,1758649850803,-381.6,0.00019726,2]
[387211362,1758649850813,-480.0,0.00019726,2]
[387211363,1758649850822,-480.0,0.00019726,2]
[387211364,1758649850832,-480.0,0.00019726,2]
[387211365,1758649850842,-480.0,0.00019726,2]
[387211366,1758649850852,-480.0,0.00019726,2]
[387211367,1758649850862,-480.0,0.00019726,2]
[387211368,1758649850871,-480.0,0.00019726,2]
[387211369,1758649850881,-480.0,0.00019726,2]
[387211370,1758649850891,-480.0,0.00019726,2]
[387211371,1758649850900,-480.0,0.00019726,2]
[387211372,1758649850909,-480.0,0.00019726,2]
[387211373,1758649850919,-9201.64,0.00019726,2]
[387211374,1758649850928,-480.0,0.00019726,2]
[387211375,1758649850938,-480.0,0.00019726,2]
[387211376,1758649850947,-480.0,0.00019726,2]
[387211377,1758649850957,-480.0,0.00019726,2]
[387211378,1758649850967,-480.0,0.00019726,2]
[387211379,1758649850978,-480.0,0.00019726,2]
[387211380,1758649850988,-514.34,0.00019726,2]
[387211381,1758649850999,-974.67,0.00019726,2]
[387211382,1758649851009,-1111.81,0.00019726,2]
[387211383,1758649851019,-480.0,0.00019726,2]
[387211384,1758649851030,-480.0,0.00019726,2]
[387211385,1758649851040,-6644.03,0.00019726,2]
[387211386,1758649851049,-652.23,0.00019726,2]